Cogmind - Beta 12 @@@ ROGUE MODE // 2023.05.19 @ 21:55:37 Player: Mr Goldstein Result: Destroyed by H-88 Terminator with Heavy Machine Gun Performance ------------- Evolutions (8) 4000 Regions Visited (18) 3600 Robots Destroyed (23) 115 Value Destroyed (1085) 1085 Prototype IDs (9) 180 Alien Tech Used (2) 400 Bonus (11509) 11509 TOTAL SCORE: 20889 Bonus ------- Pacifist 4506 High Alert Combat Kills 120 Entered DSFs 500 Met Warlord at Base 500 MAIN.C Attacked Warlord 500 Used Core Reset Matrix 3000 Scanned by Researcher 500 Met Sigix 2000 Friendly Fire -117 Cogmind --------- Core Integrity 0/1450 Matter 7/300 Energy 88/100 System Corruption 0% Temperature Cool (0) Movement Core (50) Location -2/Section 7 Parts ------- > --- POWER (1) -------- (None) > --- PROPULSION (7) --- Experimental Gyrokinetic Inverter Experimental Gyrokinetic Inverter > --- UTILITY (13) ----- Advanced Signal Interpreter Advanced Signal Interpreter Advanced Target Analyzer System Shield Experimental System Shield > --- WEAPON (2) ------- Kinetic Spear > --- INVENTORY (5) ---- Subatomic Replicator Tiamat Missile Launcher Sigix Containment Pod Peak State ------------ > --- POWER ------------ Micro Antimatter Reactor > --- PROPULSION ------- Xenon Bombardment Thruster Diametric Drive Impulse Thruster Array > --- UTILITY ---------- Advanced Signal Interpreter Advanced Signal Interpreter Hacking Suite System Shield Experimental System Shield > --- WEAPON ----------- Guided Micro-nuke Launcher > --- INVENTORY -------- Subatomic Replicator Long-range Missile Launcher Tiamat Missile Launcher Sigix Containment Pod [Rating: 85] Favorites ----------- Power Backup Power III Engine Backup Power III Reactor Light Antimatter Reactor Propulsion Backup Propulsion III Hover Unit Backup Propulsion III Flight Unit Flight Unit Utility Advanced Signal Interpreter Device Advanced Sensor Array Processor Advanced Signal Interpreter Hackware Hacking Suite Weapon Backup Laser III Energy Gun Backup Laser III Launcher Long-range Missile Launcher Piercing Weapon Kinetic Spear Build | -11 -10 -9 -8 -7 -7 -6 -6 -6 -5 -4 -4 -4 -4 -3 -3 -2 -2 -2 ------- Run | Jun Mat Mat Mat Fac DSF Fac Was Fac Fac Fac Upp Upp War Pro Res Res Qua Sec Slots Evolved 16 | . . 2 2 2 . 2 . . 2 2 . . . . 2 2 . . Power . | . . . . . . . . . . . . . . . . . . . Propulsion 5 | . . 1 1 1 . 1 . . . 1 . . . . . . . . Utility 11 | . . 1 1 1 . 1 . . 2 1 . . . . 2 2 . . Weapon . | . . . . . . . . . . . . . . . . . . . Parts Attached 59 | . . . 5 4 1 . . 11 3 . . . 5 . 9 3 8 10 Power 5 | . . . 1 1 . . . 1 . . . . . . . 1 1 . Engine 3 | . . . 1 1 . . . 1 . . . . . . . . . . Core . | . . . . . . . . . . . . . . . . . . . Reactor 2 | . . . . . . . . . . . . . . . . 1 1 . Propulsion 16 | . . . . 3 . . . 4 . . . . . . 2 1 1 5 Treads . | . . . . . . . . . . . . . . . . . . . Leg . | . . . . . . . . . . . . . . . . . . . Wheel . | . . . . . . . . . . . . . . . . . . . Hover 3 | . . . . . . . . . . . . . . . . . . 3 Flight 13 | . . . . 3 . . . 4 . . . . . . 2 1 1 2 Utility 22 | . . . 4 . 1 . . 6 3 . . . 1 . 3 . 3 1 Device 3 | . . . . . 1 . . 1 1 . . . . . . . . . Storage . | . . . . . . . . . . . . . . . . . . . Processor 12 | . . . 4 . . . . 4 1 . . . 1 . 1 . . 1 Hackware 7 | . . . . . . . . 1 1 . . . . . 2 . 3 . Protection . | . . . . . . . . . . . . . . . . . . . Artifact . | . . . . . . . . . . . . . . . . . . . Weapon 16 | . . . . . . . . . . . . . 4 . 4 1 3 4 Energy Gun 3 | . . . . . . . . . . . . . 3 . . . . . Energy Cannon . | . . . . . . . . . . . . . . . . . . . Ballistic Gun . | . . . . . . . . . . . . . . . . . . . Ballistic Cannon . | . . . . . . . . . . . . . . . . . . . Launcher 10 | . . . . . . . . . . . . . 1 . 3 1 3 2 Special Weapon . | . . . . . . . . . . . . . . . . . . . Impact Weapon . | . . . . . . . . . . . . . . . . . . . Slashing Weapon . | . . . . . . . . . . . . . . . . . . . Piercing Weapon 3 | . . . . . . . . . . . . . . . 1 . . 2 Special Melee Weapon . | . . . . . . . . . . . . . . . . . . . Unidentified Prototypes 11 | . . . 1 . . . . 1 . . . . 1 . 3 . 3 2 Parts Lost 35 | . . . 1 . 1 . 2 . 5 4 . . 6 . 5 . 7 4 Power 4 | . . . . . . . . . 1 . . . 1 . . . 2 . Propulsion 15 | . . . . . 1 . 1 . 4 . . . 2 . 1 . 3 3 Utility 13 | . . . 1 . . . 1 . . 4 . . 1 . 4 . 1 1 Weapon 3 | . . . . . . . . . . . . . 2 . . . 1 . Highest Loss Streak 5 | . . . 1 . 1 . 2 . 5 3 . . 5 . 3 . 5 3 To Critical Strikes 1 | . . . . . . . . . . . . . . . . . . 1 Average Slot Usage (%) 35 | . . . 25 53 50 40 26 41 49 35 21 21 43 21 33 32 32 31 Engine 1 | . . . . 7 2 . . 1 1 . . . 4 . . . . . Hover 2 | . . . . . . . . . . . . . 8 . . . . 7 Flight 3 | . . . . 23 18 13 4 6 8 . . . . . 2 8 6 . Device 1 | . . . . . 5 6 4 5 5 3 . . . . . . . . Processor 16 | . . . 25 23 23 20 17 23 25 22 15 15 16 15 17 8 8 11 Hackware 5 | . . . . . . . . 3 6 8 5 5 5 5 9 4 10 11 Energy Gun 1 | . . . . . . . . . . . . . 8 . . . . . Naked Turns 107 | . 53 43 11 . . . . . . . . . . . . . . . Heaviest Build 23 | . . . . 11 12 1 1 10 10 1 . . 13 . 10 23 23 2 Greatest Support 29 | 3 3 3 3 12 12 8 4 23 23 3 3 3 16 3 15 23 29 28 Greatest Overweight (x) 4 | . . . . . . . . . . . . . 4 . 2 . . . Average Overweight (x) . | . . . . . . . . . . . . . . . . . . . Largest Inventory Capacity 5 | 5 5 5 5 5 5 5 5 5 5 5 5 5 5 5 5 5 5 5 Average Capacity 5 | 5 5 5 5 5 5 5 5 5 5 5 5 5 5 5 5 5 5 5 Most Carried 5 | . 3 3 5 4 4 4 4 5 5 5 5 5 5 4 5 5 5 5 Average Carried 4 | . . 3 3 1 2 4 4 4 4 5 5 5 4 4 4 4 4 4 Final Capacity 5 | 5 5 5 5 5 5 5 5 5 5 5 5 5 5 5 5 5 5 5 Final Carried 5 | . 3 3 5 1 4 4 4 5 5 5 5 5 4 4 5 4 5 4 Class Distribution -------------------- 55% | Mutant 22% | Hacker-Mutant 15% | Scout 5% | Hacker-Scout Dominant Class ---------------- Mutant | -10/Materials Mutant | -9/Materials Mutant | -8/Materials Mutant | -7/Factory Mutant | -7/DSF Mutant | -6/Factory Mutant | -6/Waste Scout | -6/Factory Scout | -5/Factory Hacker-Scout | -4/Factory Mutant | -4/Upper Caves Mutant | -4/Upper Caves Mutant | -4/Warlord Mutant | -3/Proximity Caves Hacker-Mutant | -3/Research Hacker-Mutant | -2/Research Hacker-Mutant | -2/Quarantine Hacker-Mutant | -2/Section 7 Resources | -11 -10 -9 -8 -7 -7 -6 -6 -6 -5 -4 -4 -4 -4 -3 -3 -2 -2 -2 ----------- Run | Jun Mat Mat Mat Fac DSF Fac Was Fac Fac Fac Upp Upp War Pro Res Res Qua Sec Matter Collected 616 | . . 193 . 92 . 5 . . . . . 24 60 1 143 . 98 . Remotely . | . . . . . . . . . . . . . . . . . . . Salvage Created 480 | . . . . . . . . . . . . . . . 135 . 123 222 Parts 29 | . . . . . . . . . . . . . . . 9 . 9 11 Haulers Intercepted 1 | . . . . . . . . . . . . . . . . . . 1 Recyclers Shooed . | . . . . . . . . . . . . . . . . . . . Parts Field Recycled . | . . . . . . . . . . . . . . . . . . . Retrieved Matter . | . . . . . . . . . . . . . . . . . . . Parts Self-Destructed 1 | . . . . . . . . . . . . . . 1 . . . . Prevented 8 | . . . . . . . . . . . . . . 8 . . . . Kills | -11 -10 -9 -8 -7 -7 -6 -6 -6 -5 -4 -4 -4 -4 -3 -3 -2 -2 -2 ------- Run | Jun Mat Mat Mat Fac DSF Fac Was Fac Fac Fac Upp Upp War Pro Res Res Qua Sec Combat Hostiles Destroyed 20 | . . . . . . . . . . . . . . . 8 . 5 7 AOE 20 | . . . . . . . . . . . . . . . 8 . 5 7 Classes Destroyed 4 | . . . . . . . . . . . . . . . 2 . 1 1 Builder 1 | . . . . . . . . . . . . . . . 1 . . . Hauler 1 | . . . . . . . . . . . . . . . . . . 1 Swarmer 20 | . . . . . . . . . . . . . . . 8 . 5 7 Researcher 1 | . . . . . . . . . . . . . . . . . 1 . Best Kill Streak 6 | . . . . . . . . . . . . . . . 5 . 6 6 Combat Bots Only 5 | . . . . . . . . . . . . . . . 4 . 5 5 Max Kills in Single Turn 6 | . . . . . . . . . . . . . . . 4 . 3 6 Gunslinging . | . . . . . . . . . . . . . . . . . . . Exploded 5 | . . . . . . . . . . . . . . . 3 . 3 5 Melee . | . . . . . . . . . . . . . . . . . . . Uniques/NPCs Destroyed . | . . . . . . . . . . . . . . . . . . . Combat | -11 -10 -9 -8 -7 -7 -6 -6 -6 -5 -4 -4 -4 -4 -3 -3 -2 -2 -2 -------- Run | Jun Mat Mat Mat Fac DSF Fac Was Fac Fac Fac Upp Upp War Pro Res Res Qua Sec Damage Taken 5844 | . 195 42 180 . 62 . 67 159 329 586 72 228 606 18 940 29 1233 1098 Core 3868 | . 195 42 156 . 14 . 67 84 202 457 72 228 338 18 531 . 717 747 Absorbed by Shields . | . . . . . . . . . . . . . . . . . . . Core Remaining (%) 67 | 100 22 89 71 . 98 . . 82 79 . . . . 3 59 . . . Volleys Fired 18 | . . . . . . . . . . . . . 4 . 8 1 3 2 Largest 1 | . . . . . . . . . . . . . 1 . 1 1 1 1 Hottest 60 | . . . . . . . . . . . . . 60 . 43 46 46 46 Shots Fired 18 | . . . . . . . . . . . . . 4 . 8 1 3 2 Gun 3 | . . . . . . . . . . . . . 3 . . . . . Cannon . | . . . . . . . . . . . . . . . . . . . Launcher 15 | . . . . . . . . . . . . . 1 . 8 1 3 2 Special . | . . . . . . . . . . . . . . . . . . . Kinetic . | . . . . . . . . . . . . . . . . . . . Thermal . | . . . . . . . . . . . . . . . . . . . Explosive 15 | . . . . . . . . . . . . . 1 . 8 1 3 2 Electromagnetic . | . . . . . . . . . . . . . . . . . . . Entropic 3 | . . . . . . . . . . . . . 3 . . . . . Robot Hit Streak 8 | . . . . . . . . . . . . . . . 5 . 6 8 Robot Miss Streak 2 | . . . . . . . . . . . . . . . 2 . . . Penetration Max . | . . . . . . . . . . . . . . . . . . . Secondary Targets . | . . . . . . . . . . . . . . . . . . . Shots Hit Robots 8 | . . . . . . . . . . . . . . . 5 . 1 2 Core Hits 35 | . . . . . . . . . 1 . . . . . 13 . 11 10 Critical Kills . | . . . . . . . . . . . . . . . . . . . Critical Parts Destroyed . | . . . . . . . . . . . . . . . . . . . Critical Strikes . | . . . . . . . . . . . . . . . . . . . Melee Attacks 4 | . . . . . . . . . . . . . . . . . 1 3 Impact . | . . . . . . . . . . . . . . . . . . . Slashing . | . . . . . . . . . . . . . . . . . . . Piercing 4 | . . . . . . . . . . . . . . . . . 1 3 Sneak Attacks . | . . . . . . . . . . . . . . . . . . . Combat Hostiles . | . . . . . . . . . . . . . . . . . . . Follow-up Attacks . | . . . . . . . . . . . . . . . . . . . Damage Inflicted 2893 | . . . . . . . . . 4 3 . . 39 . 1131 . 737 979 Guns . | . . . . . . . . . . . . . . . . . . . Cannons . | . . . . . . . . . . . . . . . . . . . Explosions 2868 | . . . . . . . . . . . . . 39 . 1124 . 737 968 Melee . | . . . . . . . . . . . . . . . . . . . Ramming 25 | . . . . . . . . . 4 3 . . . . 7 . . 11 Kinetic . | . . . . . . . . . . . . . . . . . . . Thermal . | . . . . . . . . . . . . . . . . . . . Explosive 2868 | . . . . . . . . . . . . . 39 . 1124 . 737 968 Electromagnetic . | . . . . . . . . . . . . . . . . . . . Impact . | . . . . . . . . . . . . . . . . . . . Slashing . | . . . . . . . . . . . . . . . . . . . Piercing . | . . . . . . . . . . . . . . . . . . . Highest Corruption 12 | . . . . . . 2 12 12 . . . . 1 1 2 . 1 1 Average Corruption 5 | . . . . . . 2 6 12 . . . . 1 1 1 . 1 1 Corruption Purged . | . . . . . . . . . . . . . . . . . . . Corruption Blocked . | . . . . . . . . . . . . . . . . . . . Effects 20 | . . . . . . . 2 15 . . . . . 1 1 . . 1 Message Errors 6 | . . . . . . . . 5 . . . . . . 1 . . . Matter Fused 2 | . . . . . . . . 2 . . . . . . . . . . Heat Flow Errors 2 | . . . . . . . . 2 . . . . . . . . . . Energy Discharges 3 | . . . . . . . . 3 . . . . . . . . . . Data Loss (minor) 3 | . . . . . . . . 1 . . . . . 1 . . . 1 Data Loss (major) 1 | . . . . . . . 1 . . . . . . . . . . . Misdirections 3 | . . . . . . . 1 2 . . . . . . . . . . Overload Shots . | . . . . . . . . . . . . . . . . . . . Overflow Damage 190 | . . . . . . . . . . . . . 4 . 122 . 30 34 Projectiles . | . . . . . . . . . . . . . . . . . . . Explosions 190 | . . . . . . . . . . . . . 4 . 122 . 30 34 Melee . | . . . . . . . . . . . . . . . . . . . Knockbacks . | . . . . . . . . . . . . . . . . . . . Impact . | . . . . . . . . . . . . . . . . . . . Kinetic . | . . . . . . . . . . . . . . . . . . . Secondary . | . . . . . . . . . . . . . . . . . . . Self-Inflicted Damage 38 | . . . . . . . . . 2 . . . 28 . 3 . . 5 Shots 1 | . . . . . . . . . . . . . 1 . . . . . Rammed 9 | . . . . . . . . . 1 3 . . 1 . 2 . . 2 Targets Rammed 9 | . . . . . . . . . 1 3 . . 1 . 2 . . 2 Kicked . | . . . . . . . . . . . . . . . . . . . Crushed . | . . . . . . . . . . . . . . . . . . . Highest Temperature 248 | . . . . . . . . 248 . . . . . . . . . . Average Temperature 116 | . . . . . . . . 116 . . . . . . . . . . Received Heat Transfer 417 | . 9 6 9 . . . . 36 27 18 18 27 39 9 93 9 54 63 Siege Activations . | . . . . . . . . . . . . . . . . . . . Robots Corrupted . | . . . . . . . . . . . . . . . . . . . Combat Hostiles . | . . . . . . . . . . . . . . . . . . . Parts Fried . | . . . . . . . . . . . . . . . . . . . Impact Corruptions . | . . . . . . . . . . . . . . . . . . . Robots Melted . | . . . . . . . . . . . . . . . . . . . Combat Hostiles . | . . . . . . . . . . . . . . . . . . . Parts Melted . | . . . . . . . . . . . . . . . . . . . Heat Transferred . | . . . . . . . . . . . . . . . . . . . Parts Sabotaged . | . . . . . . . . . . . . . . . . . . . Parts Stolen . | . . . . . . . . . . . . . . . . . . . Parts Stripped . | . . . . . . . . . . . . . . . . . . . Power Chain Reactions . | . . . . . . . . . . . . . . . . . . . Missiles Intercepted . | . . . . . . . . . . . . . . . . . . . Alert | -11 -10 -9 -8 -7 -7 -6 -6 -6 -5 -4 -4 -4 -4 -3 -3 -2 -2 -2 ------- Run | Jun Mat Mat Mat Fac DSF Fac Was Fac Fac Fac Upp Upp War Pro Res Res Qua Sec Peak Influence 867 | . 45 63 56 35 33 16 5 395 485 349 . . . . 719 584 715 867 Initial 404 | . . 18 26 20 28 16 5 . 200 237 . . . . 20 404 328 402 Average 286 | . 25 34 31 28 24 16 1 97 334 279 . . . . 364 495 545 631 Maximum Alert Level 3 | . . . . . . . . 1 2 1 . . . . 3 2 3 3 Low Security (%) 40 | 100 100 100 100 100 100 100 100 86 1 . . . . . 19 . . . Level 1 26 | . . . . . . . . 13 46 100 . . . . 40 . 35 . Level 2 27 | . . . . . . . . . 51 . . . . . 35 100 54 69 Level 3 5 | . . . . . . . . . . . . . . . 5 . 9 30 Level 4 . | . . . . . . . . . . . . . . . . . . . Level 5 . | . . . . . . . . . . . . . . . . . . . High Security . | . . . . . . . . . . . . . . . . . . . Max Security . | . . . . . . . . . . . . . . . . . . . Squads Dispatched 22 | . 1 . . 2 1 . . 4 2 2 . . . . 2 . 5 3 Investigation 8 | . . . . 1 . . . 2 2 1 . . . . 1 . 1 . Extermination . | . . . . . . . . . . . . . . . . . . . Reinforcement 14 | . 1 . . 1 1 . . 2 . 1 . . . . 1 . 4 3 Assault . | . . . . . . . . . . . . . . . . . . . Garrison . | . . . . . . . . . . . . . . . . . . . Intercept . | . . . . . . . . . . . . . . . . . . . Searches Triggered . | . . . . . . . . . . . . . . . . . . . Construction Impeded 2 | . . . . . . . . . . . . . . . . . 1 1 Haulers Reinforced . | . . . . . . . . . . . . . . . . . . . Active Scanning Responses . | . . . . . . . . . . . . . . . . . . . Cargo Convoy Interrupts . | . . . . . . . . . . . . . . . . . . . Stealth | -11 -10 -9 -8 -7 -7 -6 -6 -6 -5 -4 -4 -4 -4 -3 -3 -2 -2 -2 --------- Run | Jun Mat Mat Mat Fac DSF Fac Was Fac Fac Fac Upp Upp War Pro Res Res Qua Sec Distress Signals 6 | . . . . . . . . 1 . . . . . . 1 . 4 . Communications Jammed . | . . . . . . . . . . . . . . . . . . . Distress Signals . | . . . . . . . . . . . . . . . . . . . Times Spotted 160 | . 8 3 3 2 5 . 5 13 7 10 1 1 14 2 29 2 29 26 Peak Tracking Total 17 | . 8 4 3 2 4 . 5 9 6 6 1 1 13 2 16 2 17 14 Tactical Retreats 20 | . . 1 . . 1 . . 3 2 2 . . . 1 3 . 4 3 Traps | -11 -10 -9 -8 -7 -7 -6 -6 -6 -5 -4 -4 -4 -4 -3 -3 -2 -2 -2 ------- Run | Jun Mat Mat Mat Fac DSF Fac Was Fac Fac Fac Upp Upp War Pro Res Res Qua Sec Traps Triggered 9 | . . . . . 1 3 . . 2 1 . . . . 1 . 1 . Indirectly . | . . . . . . . . . . . . . . . . . . . Trap Hack Attempts . | . . . . . . . . . . . . . . . . . . . Triggered . | . . . . . . . . . . . . . . . . . . . Disarmed . | . . . . . . . . . . . . . . . . . . . Reprogrammed . | . . . . . . . . . . . . . . . . . . . Reused . | . . . . . . . . . . . . . . . . . . . Traps Extracted . | . . . . . . . . . . . . . . . . . . . Installed . | . . . . . . . . . . . . . . . . . . . Triggered 13 | . . . . . . . . . . . . . 10 3 . . . . Machines | -11 -10 -9 -8 -7 -7 -6 -6 -6 -5 -4 -4 -4 -4 -3 -3 -2 -2 -2 ---------- Run | Jun Mat Mat Mat Fac DSF Fac Was Fac Fac Fac Upp Upp War Pro Res Res Qua Sec Machines Disabled 6 | . . . . . . . . . . . . . 1 . 1 1 1 2 Max in Single Turn 1 | . . . . . . . . . . . . . 1 . 1 1 1 1 Garrison Access 4 | . . . . . . . . 1 1 . . . . . 1 1 . . Machines Repaired . | . . . . . . . . . . . . . . . . . . . Machines Sabotaged . | . . . . . . . . . . . . . . . . . . . Overloaded Fab Kills . | . . . . . . . . . . . . . . . . . . . Hacking | -11 -10 -9 -8 -7 -7 -6 -6 -6 -5 -4 -4 -4 -4 -3 -3 -2 -2 -2 --------- Run | Jun Mat Mat Mat Fac DSF Fac Was Fac Fac Fac Upp Upp War Pro Res Res Qua Sec Machines Accessed 18 | . . . . 3 . . . 2 3 2 . . 2 . 1 . 4 1 Terminals 11 | . . . . 2 . . . 1 1 2 . . . . . . 4 1 Fabricators 2 | . . . . 1 . . . . 1 . . . . . . . . . Repair Stations . | . . . . . . . . . . . . . . . . . . . Recycling Units . | . . . . . . . . . . . . . . . . . . . Scanalyzers . | . . . . . . . . . . . . . . . . . . . Garrison Access 3 | . . . . . . . . 1 1 . . . . . 1 . . . Total Hacks 38 | . . . . 7 . . . 4 5 7 . . 2 . 3 . 9 1 Successful 12 | . . . . 2 . . . 1 2 1 . . 2 . 1 . 2 1 Failed 26 | . . . . 5 . . . 3 3 6 . . . . 2 . 7 . Catastrophic 6 | . . . . 1 . . . 2 1 1 . . . . . . 1 . Database Lockouts . | . . . . . . . . . . . . . . . . . . . Manual 14 | . . . . . . . . 4 1 7 . . . . 1 . 1 . Terminals 29 | . . . . 6 . . . 3 3 7 . . . . . . 9 1 Fabricators 2 | . . . . 1 . . . . 1 . . . . . . . . . Repair Stations . | . . . . . . . . . . . . . . . . . . . Recycling Units . | . . . . . . . . . . . . . . . . . . . Scanalyzers . | . . . . . . . . . . . . . . . . . . . Garrison Access 5 | . . . . . . . . 1 1 . . . . . 3 . . . Terminal Hacks 7 | . . . . 1 . . . . . 1 . . 2 . . . 2 1 Record 1 | . . . . . . . . . . . . . . . . . 1 . Open Door 3 | . . . . . . . . . . . . . 2 . . . 1 . Open DSF 1 | . . . . 1 . . . . . . . . . . . . . . Level Access Points 1 | . . . . . . . . . . . . . . . . . . 1 Branch Access Points 1 | . . . . . . . . . . 1 . . . . . . . . Fabricator Hacks 2 | . . . . 1 . . . . 1 . . . . . . . . . Network Status 2 | . . . . 1 . . . . 1 . . . . . . . . . Repair Station Hacks . | . . . . . . . . . . . . . . . . . . . Recycling Unit Hacks . | . . . . . . . . . . . . . . . . . . . Scanalyzer . | . . . . . . . . . . . . . . . . . . . Garrison Access Hacks . | . . . . . . . . . . . . . . . . . . . Unauthorized Hacks 3 | . . . . . . . . 1 1 . . . . . 1 . . . Terminals . | . . . . . . . . . . . . . . . . . . . Fabricators . | . . . . . . . . . . . . . . . . . . . Repair Stations . | . . . . . . . . . . . . . . . . . . . Recycling Units . | . . . . . . . . . . . . . . . . . . . Scanalyzers . | . . . . . . . . . . . . . . . . . . . Garrison Access 3 | . . . . . . . . 1 1 . . . . . 1 . . . Jam 3 | . . . . . . . . 1 1 . . . . . 1 . . . Data Cores Recovered . | . . . . . . . . . . . . . . . . . . . Used . | . . . . . . . . . . . . . . . . . . . Hacking Detections 9 | . . . . 2 . . . 1 1 1 . . . . 1 . 2 1 Full Trace Events 5 | . . . . 1 . . . 1 1 1 . . . . . . 1 . Feedback Events . | . . . . . . . . . . . . . . . . . . . Feedback Blocked . | . . . . . . . . . . . . . . . . . . . Robot Schematics Acquired . | . . . . . . . . . . . . . . . . . . . Robots Built . | . . . . . . . . . . . . . . . . . . . Authchips . | . . . . . . . . . . . . . . . . . . . Time . | . . . . . . . . . . . . . . . . . . . Total Robot Build Rating . | . . . . . . . . . . . . . . . . . . . Part Schematics Acquired 1 | . . . . . . . . . . . . . . . . . . 1 Parts Built . | . . . . . . . . . . . . . . . . . . . Authchips . | . . . . . . . . . . . . . . . . . . . Time . | . . . . . . . . . . . . . . . . . . . Total Part Build Rating . | . . . . . . . . . . . . . . . . . . . Parts Repaired . | . . . . . . . . . . . . . . . . . . . Time . | . . . . . . . . . . . . . . . . . . . Parts Recycled . | . . . . . . . . . . . . . . . . . . . Recycled Matter . | . . . . . . . . . . . . . . . . . . . Retrieved Matter . | . . . . . . . . . . . . . . . . . . . Retrieved Components . | . . . . . . . . . . . . . . . . . . . Parts Scanalyzed . | . . . . . . . . . . . . . . . . . . . Part Schematics Acquired . | . . . . . . . . . . . . . . . . . . . Parts Damaged . | . . . . . . . . . . . . . . . . . . . Bothacking | -11 -10 -9 -8 -7 -7 -6 -6 -6 -5 -4 -4 -4 -4 -3 -3 -2 -2 -2 ------------ Run | Jun Mat Mat Mat Fac DSF Fac Was Fac Fac Fac Upp Upp War Pro Res Res Qua Sec Used RIF Installer . | . . . . . . . . . . . . . . . . . . . Robots Hacked . | . . . . . . . . . . . . . . . . . . . Non-combat . | . . . . . . . . . . . . . . . . . . . Combat . | . . . . . . . . . . . . . . . . . . . Robot Hacks Applied . | . . . . . . . . . . . . . . . . . . . Relay Couplers Released 1 | . . . . . . . . . . . . . . . . 1 . . Machine Destruction 1 | . . . . . . . . . . . . . . . . 1 . . Fabnet Peak Effective % . | . . . . . . . . . . . . . . . . . . . Robots Rewired . | . . . . . . . . . . . . . . . . . . . Allies Hacked . | . . . . . . . . . . . . . . . . . . . Hacks Repelled . | . . . . . . . . . . . . . . . . . . . Allies | -11 -10 -9 -8 -7 -7 -6 -6 -6 -5 -4 -4 -4 -4 -3 -3 -2 -2 -2 -------- Run | Jun Mat Mat Mat Fac DSF Fac Was Fac Fac Fac Upp Upp War Pro Res Res Qua Sec Total Allies 1 | . . . . . . . 1 . . . . . . . . . . . Largest Group 1 | . . . . . . . 1 . . . . . . . . . . . Highest-Rated Group 31 | . . . . . . . 31 . . . . . . . . . . . Highest-Rated Ally 31 | . . . . . . . 31 . . . . . . . . . . . Total Orders . | . . . . . . . . . . . . . . . . . . . Ally Attacks 10 | . . . . . . . 10 . . . . . . . . . . . Total Damage 146 | . . . . . . . 146 . . . . . . . . . . . Kills . | . . . . . . . . . . . . . . . . . . . Allies Corrupted . | . . . . . . . . . . . . . . . . . . . Allies Melted . | . . . . . . . . . . . . . . . . . . . Intel | -11 -10 -9 -8 -7 -7 -6 -6 -6 -5 -4 -4 -4 -4 -3 -3 -2 -2 -2 ------- Run | Jun Mat Mat Mat Fac DSF Fac Was Fac Fac Fac Upp Upp War Pro Res Res Qua Sec Robot Analysis Total . | . . . . . . . . . . . . . . . . . . . Derelict Logs Recovered 1 | . . . . . . . . . . . 1 . . . . . . . Drone Launches . | . . . . . . . . . . . . . . . . . . . Drone Recoveries . | . . . . . . . . . . . . . . . . . . . Exploration | -11 -10 -9 -8 -7 -7 -6 -6 -6 -5 -4 -4 -4 -4 -3 -3 -2 -2 -2 ------------- Run | Jun Mat Mat Mat Fac DSF Fac Was Fac Fac Fac Upp Upp War Pro Res Res Qua Sec Turns Passed 2385 | 10 53 43 59 49 45 68 28 280 160 137 102 66 535 98 236 22 218 176 Spaces Moved 4393 | 19 100 85 99 133 69 146 61 584 372 234 204 132 683 195 441 48 513 275 Core 2481 | 19 100 85 99 . . . 36 324 124 234 204 132 418 195 143 . 127 241 Treads . | . . . . . . . . . . . . . . . . . . . Legs . | . . . . . . . . . . . . . . . . . . . Wheels . | . . . . . . . . . . . . . . . . . . . Hover 268 | . . . . . . . . . . . . . 265 . . . . 3 Flight 1644 | . . . . 133 69 146 25 260 248 . . . . . 298 48 386 31 Fastest Speed 26 | 50 50 50 50 34 34 37 40 26 26 50 50 50 50 50 30 30 32 40 Average Speed 47 | 50 50 50 50 34 35 37 45 39 35 50 50 50 75 50 44 33 37 48 Slowest Speed 250 | 50 50 50 50 34 37 40 50 50 50 50 50 50 250 50 150 34 50 60 Overloaded Moves . | . . . . . . . . . . . . . . . . . . . Propulsion Burnouts . | . . . . . . . . . . . . . . . . . . . Robots Hopped 48 | . . . . 1 1 1 . 14 6 . . . . . 10 1 14 . Cave-ins Triggered . | . . . . . . . . . . . . . . . . . . . Exploration Rate (%) 32 | 4 28 15 14 4 85 8 69 24 13 12 51 40 88 40 29 3 72 18 Regions Visited 18 Branch Regions 6 Pre-discovered Areas 1 | . . . . . . . . . . . 1 . . . . . . . Known Exits Taken 11 | . . . . 1 . . . 1 1 1 1 1 1 1 1 1 1 . Unknown Exits Taken 4 | 1 1 1 1 . . . . . . . . . . . . . . . Scrap Searched 1 | . . . . . . . . . . . . 1 . . . . . . Spaces Dug 12 | . . . . . . . . . . . . . . . 10 . . 2 Terrain Destroyed 139 | . . . . . . . . . . . . . . . 80 . 29 30 Melee 2 | . . . . . . . . . . . . . . . . . . 2 Projectile . | . . . . . . . . . . . . . . . . . . . AOE 137 | . . . . . . . . . . . . . . . 80 . 29 28 Terrain Rammed . | . . . . . . . . . . . . . . . . . . . Walls Destroyed . | . . . . . . . . . . . . . . . . . . . Machines Disabled . | . . . . . . . . . . . . . . . . . . . Actions | -11 -10 -9 -8 -7 -7 -6 -6 -6 -5 -4 -4 -4 -4 -3 -3 -2 -2 -2 --------- Run | Jun Mat Mat Mat Fac DSF Fac Was Fac Fac Fac Upp Upp War Pro Res Res Qua Sec Total 4571 | 18 102 84 105 135 88 158 60 613 393 253 203 131 697 194 458 51 520 308 Wait 52 | . . . . . 4 . . 26 22 . . . . . . . . . Move 4288 | 18 99 84 98 130 66 144 60 557 359 233 203 131 682 194 422 45 488 275 Hop 41 | . . . . 1 1 1 . 12 6 . . . . . 9 1 10 . Pick Up 16 | . 3 . 1 . 2 . . 4 1 1 . . . . . . 4 . Fast Attach 38 | . . . 5 . 1 . . 9 2 . . . 1 . 7 1 5 7 Attach 22 | . . . . 4 . . . 2 1 . . . 3 . 2 2 4 4 Detach 12 | . . . 1 . 1 . . . . . . . 2 . 3 1 1 3 Swap 1 | . . . . . . . . . . . . . 1 . . . . . Drop 12 | . . . . . . . . 3 1 1 . . 3 . . . 4 . Fire 18 | . . . . . . . . . . . . . 4 . 8 1 3 2 Melee 4 | . . . . . . . . . . . . . . . . . 1 3 Ram 8 | . . . . . . . . . 1 3 . . 1 . 1 . . 2 Kick . | . . . . . . . . . . . . . . . . . . . Crush . | . . . . . . . . . . . . . . . . . . . Escape Stasis 59 | . . . . . 13 13 . . . 15 . . . . 6 . . 12 Rewire . | . . . . . . . . . . . . . . . . . . . Trap . | . . . . . . . . . . . . . . . . . . . Miscellaneous . | . . . . . . . . . . . . . . . . . . . Route ------- -11/Junkyard -10/Materials -9/Materials -8/Materials -7/Factory -7/DSF -6/Factory -6/Waste -6/Factory (discovered 2 exits: *Fac / [*Low]) -5/Factory -4/Factory (discovered 3 exits: *Upp x2 / Arm) -4/Upper Caves -4/Upper Caves -4/Warlord -3/Proximity Caves -3/Research (discovered 2 exits: *Res / [*Tes]) -2/Research -2/Quarantine -2/Section 7 History --------- Turn | Location | Event 2 | -11/Junkyard | Discovered new exit (range 16) 11 | -11/Junkyard | Entered Materials 48 | -10/Materials | Core integrity fell below 50% 57 | -10/Materials | Discovered new exit (range 15) 64 | -10/Materials | Entered another Materials area 64 | -9/Materials | Evolved 2 slots: Propulsion x1, Utility x1 103 | -9/Materials | Discovered new exit (range 5) 107 | -9/Materials | Entered another Materials area 107 | -8/Materials | Evolved 2 slots: Propulsion x1, Utility x1 157 | -8/Materials | Discovered new exit (range 11) 166 | -8/Materials | Entered Factory 166 | -7/Factory | Evolved 2 slots: Propulsion x1, Utility x1 215 | -7/Factory | Identified exit to DSF 215 | -7/Factory | Entered DSF 235 | -7/DSF | Additional patrols routed to DSF 243 | -7/DSF | Discovered new exit (range 12) 260 | -7/DSF | Entered Factory 260 | -6/Factory | Evolved 2 slots: Propulsion x1, Utility x1 315 | -6/Factory | Build established: Mutant 328 | -6/Factory | Sucked down chute 328 | -6/Factory | Entered Waste 329 | -6/Waste | Met a frightened Derelict 333 | -6/Waste | Spotted C-40 Crusher 334 | -6/Waste | Spotted C-40 Crusher 338 | -6/Waste | Crushed by Compactor (1 part destroyed, 1 dropped) 339 | -6/Waste | Spotted C-40 Crusher 343 | -6/Waste | EMP discharged 343 | -6/Waste | System corruption reached 10% 343 | -6/Waste | Spotted C-40 Crusher 345 | -6/Waste | Spotted C-40 Crusher 347 | -6/Waste | Crushed by Compactor (1 part destroyed, 1 dropped) 348 | -6/Waste | Discovered new exit (range 16) 356 | -6/Waste | Entered Factory 634 | -6/Factory | Discovered new exit (range 5) 634 | -6/Factory | Discovered new exit (range 15) 636 | -6/Factory | Identified exit to Factory 636 | -6/Factory | Entered another Factory area 636 | -5/Factory | Evolved 2 slots: Utility x2 710 | -5/Factory | Build established: Scout 737 | -5/Factory | Lost 5 parts (1p4n) 787 | -5/Factory | Discovered new exit (range 18) 796 | -5/Factory | Identified exit to Factory 796 | -5/Factory | Entered another Factory area 796 | -4/Factory | Evolved 2 slots: Propulsion x1, Utility x1 885 | -4/Factory | Identified exit to Upper Caves 885 | -4/Factory | Identified exit to Armory 933 | -4/Factory | Entered Upper Caves 960 | -4/Upper Caves | Lost 3 parts (3u) 963 | -4/Upper Caves | Learned location of Testing (-3) 1029 | -4/Upper Caves | Discovered new exit (range 13) 1034 | -4/Upper Caves | Attracted the attention of an 0b10 checkpoint 1035 | -4/Upper Caves | Identified exit to Upper Caves 1035 | -4/Upper Caves | Entered another Upper Caves area 1071 | -4/Upper Caves | Spotted B-86 Titan 1074 | -4/Upper Caves | Core integrity fell below 50% 1097 | -4/Upper Caves | Discovered new exit (range 8) 1101 | -4/Upper Caves | Identified exit to Warlord 1101 | -4/Upper Caves | Entered Warlord 1209 | -4/Warlord | Build established: Mutant 1401 | -4/Warlord | Visited the Vortex Lab 1406 | -4/Warlord | Met EX-DEC 1408 | -4/Warlord | Found Prototype Energy Gun 1408 | -4/Warlord | Identified Vortex Shotgun 1418 | -4/Warlord | Warlord's base attacked by MAIN.C 1453 | -4/Warlord | Met Warlord 1609 | -4/Warlord | Opened side exit 1630 | -4/Warlord | Discovered new exit (range 10) 1634 | -4/Warlord | Core integrity fell below 20% 1636 | -4/Warlord | Identified exit to Proximity Caves 1636 | -4/Warlord | Entered Proximity Caves 1665 | -3/Proximity Caves | Lost 5 parts (1p2n2w) 1726 | -3/Proximity Caves | Discovered new exit (range 15) 1733 | -3/Proximity Caves | Identified exit to Research 1734 | -3/Proximity Caves | Entered Research 1734 | -3/Research | Evolved 2 slots: Utility x2 1960 | -3/Research | Discovered new exit (range 12) 1963 | -3/Research | Discovered new exit (range 15) 1965 | -3/Research | Identified exit to Research 1970 | -3/Research | Entered another Research area 1970 | -2/Research | Warlord forces began assault on 0b10 1970 | -2/Research | Evolved 2 slots: Utility x2 1988 | -2/Research | Discovered new exit (range 14) 1992 | -2/Research | Identified exit to Quarantine 1992 | -2/Research | Entered Quarantine 1997 | -2/Quarantine | Lost 3 parts (1n2u) 2060 | -2/Quarantine | Found Alien Artifact 2068 | -2/Quarantine | Identified Subatomic Replicator 2108 | -2/Quarantine | Met incapacitated Sigix Warrior 2108 | -2/Quarantine | Lockdown squad dispatched 2109 | -2/Quarantine | Acquired the access code to the Sigix quarantine chamber 2109 | -2/Quarantine | Unlocked Sigix quarantine chamber 2124 | -2/Quarantine | Found Prototype Hackware 2124 | -2/Quarantine | Identified Exp. System Shield 2128 | -2/Quarantine | Found Prototype Launcher 2128 | -2/Quarantine | Identified Gui. Micro-nuke Launcher 2158 | -2/Quarantine | Spotted Lightning 2158 | -2/Quarantine | Spotted Lightning 2172 | -2/Quarantine | Spotted Fortress 2178 | -2/Quarantine | Lost 5 parts (1p3n1w) 2208 | -2/Quarantine | Discovered new exit (range 6) 2210 | -2/Quarantine | Identified exit to Section 7 2210 | -2/Quarantine | Entered Section 7 2234 | -2/Section 7 | Identified exit to Access 2243 | -2/Section 7 | Spotted B-90 Cyclops 2245 | -2/Section 7 | Core integrity fell below 50% 2325 | -2/Section 7 | Core integrity fell below 20% 2370 | -2/Section 7 | Scanned by Researcher 2371 | -2/Section 7 | Lost 3 parts (2n1u) 2384 | -2/Section 7 | Found Alien Artifact 2384 | -2/Section 7 | Identified Core Reset Matrix 2384 | -2/Section 7 | Used Core Reset Matrix 2386 | -2/Section 7 | Destroyed by H-88 Terminator with Heavy Machine Gun Last Messages --------------- 02378_ Held in stasis. 02378_ C-65 Expert is analyzing... 02378_ Slug penetrates Suspension Chamber. 02378_ Slug penetrates Wall. 02380_ Slug penetrates Suspension Chamber. 02381_ Slug penetrates C-65 Expert. 02381_ C-65 Expert destroyed. 02381_ Slug penetrates Suspension Chamber. 02381_ Exp. Gyrokinetic Inverter destroyed. 02383_ Slug penetrates Suspension Chamber. 02384_ Acquired Alien Artifact. 02384_ Identified Core Reset Matrix. 02384_ Wiping memory... 02385_ CORE RESET 02385_ Slug penetrates Suspension Chamber. 02386_ Extracted schematic archive: Diametric Drive. 02386_ Held in stasis. 02386_ C-65 Expert is analyzing... 02386_ Slug penetrates Suspension Chamber. 02386_ Penetrated by Slug. Map ----- +----------------------------------------------------+ | ?????????????????????????????????????????????????? | | ?????????????????????????????????????????????????? | | ?????????????????????????????????????????????????? | | ?????????????????????????????????????????????????? | | ?????????????????????????????????????????????????? | | ?????????????????????????????????????????????????? | | ?????????????????????????????????????????????????? | | ?????????????????????????????????????????????????? | | ?????????????????????????????????????????????????? | | ?????????????????????????????????????????????????? | | ?????????????????????????????????????????????????? | | ?????????????????????????????????????????????????? | | ?????????????????????????????????????????????????? | | ?????????????????????????????????????????????????? | | ?????????????????????????????????????????????????? | | ?????????????????????????????????????????????????? | | ?????????????????????????????????????????????????? | | ?????????????????????????????????????????????????? | | ?????????????????#????##########?????????????????? | | ?????????????????# ???# #?????????????????? | | ?????????????????# ??# "" #?????????????????? | | ?????????????????# ?# "" +?????????????????? | | ?????????????????# # """"" #?????????????????? | | ?????????????????# /h " """ +?????????????????? | | ?????????????????# #h$" """ #?????????????????? | | ??????????????????????#$%@* "" #?????????????????? | | ??????????????????????#$$! "" #?????????????????? | | ??????????????????????# = c #?????????????????? | | ??????????????????????##########?????????????????? | | ?????????????????????????????????????????????????? | | ?????????????????????????????????????????????????? | | ?????????????????????????????????????????????????? | | ?????????????????????????????????????????????????? | | ?????????????????????????????????????????????????? | | ?????????????????????????????????????????????????? | | ?????????????????????????????????????????????????? | | ?????????????????????????????????????????????????? | | ?????????????????????????????????????????????????? | | ?????????????????????????????????????????????????? | | ?????????????????????????????????????????????????? | | ?????????????????????????????????????????????????? | | ?????????????????????????????????????????????????? | | ?????????????????????????????????????????????????? | | ?????????????????????????????????????????????????? | | ?????????????????????????????????????????????????? | | ?????????????????????????????????????????????????? | | ?????????????????????????????????????????????????? | | ?????????????????????????????????????????????????? | | ?????????????????????????????????????????????????? | | ?????????????????????????????????????????????????? | +----------------------------------------------------+ Best States ------------- Heat Dissipation 49 Energy Generation 21 Energy Capacity 310 Matter Stores 300 Matter Capacity 300 Sight Range 22 Robot Scan Range 16 Terrain Scan Density 10 Evasion (%) 64 Melee Accuracy 5 Target Analysis 8 Core Analysis 9 Offensive Hacking 10 Defensive Hacking 26 Item Schematics ----------------- Diametric Drive | -2/Section 7 | Archive Robot Schematics ------------------ None Fabricated ------------ Nothing Alien Tech Used ----------------- Subatomic Replicator Core Reset Matrix Achievements -------------- None Challenges ------------ None Game ------ Seed AlloyBladeKit Manual? 0 Play Time 00:31:42 Cumulative 227.1 hours Start 2023.05.19 @ 21:26:32 End 2023.05.19 @ 21:55:37 Sessions 1 Manual Loads 0 Difficulty Rogue Special Mode None Game No. 690 Rogue 690 Adventurer 0 Explorer 0 Win Type - Total 10 Types 8/0/1/1/0/0/0/0/0 Lore% 83 Gallery% 81 Achievement% 72 Wizard Run 0 Options --------- ASCII 0 Keyboard 0 Movement Numpad Keybinds 0 Fullscreen 1 Font 16/SmallcapsGlow Map View 75x55 Tactical HUD 1 Map Filters NONE Filters NONE Steam 1 RUN: c5e64f2b-3178-4600-9380-2078b3838f72